bitfinex/quotes_SOLUSD_20260302
["timestamp","ask_amount","ask_price","bid_price","bid_amount"]
[1772426012359,4.59407442,84.62,84.588,2.44576042]
[1772426012558,16.41171,84.62,84.588,2.44576042]
[1772426013243,4.59407442,84.61,84.588,2.44576042]
[1772426015269,2.48810406,84.619,84.588,2.44576042]
[1772426015458,2.48810406,84.619,84.59,2.44576042]
[1772426015846,2.48810406,84.617,84.59,2.44576042]
[1772426016065,4.59407442,84.62,84.59,2.44576042]
[1772426016570,11.81702782,84.624,84.598,2.44576042]
[1772426016941,4.59407442,84.62,84.598,2.44576042]
[1772426018774,4.59407442,84.64,84.605,0.14216157]
[1772426019074,4.59407442,84.64,84.608,2.44576042]
[1772426019751,2.48810406,84.638,84.582,0.28432314]
[1772426020066,4.59407442,84.59,84.563,2.44576042]
[1772426020269,2.48810406,84.589,84.563,2.44576042]
[1772426020570,4.59407442,84.58,84.563,2.44576042]
[1772426020870,2.48810406,84.589,84.563,2.44576042]
[1772426021856,11.82200784,84.588,84.563,2.44576042]
[1772426022053,2.48810406,84.579,84.556,2.44576042]
[1772426022252,2.48810406,84.579,84.55,0.2]
[1772426022253,4.59407442,84.57,84.55,0.2]
[1772426022460,7.08217848,84.57,84.55,0.2]
[1772426022658,4.59407442,84.57,84.55,0.2]
[1772426022873,4.59407442,84.57,84.552,3.46446469]
[1772426023669,4.59407442,84.57,84.552,1.01870427]
[1772426024050,11.82466388,84.569,84.552,1.01870427]
[1772426026653,11.82466388,84.569,84.55,0.2]
[1772426026654,2.48810406,84.559,84.55,0.2]
[1772426026868,2.48810406,84.559,84.538,2.44576042]
[1772426027372,2.48810406,84.559,84.502,61.8]
[1772426027373,2.57955701,84.549,84.515,2.48498715]
[1772426027670,2.57955701,84.549,84.522,2.48498715]
[1772426028366,2.57955701,84.549,84.53,1e-08]
[1772426028569,10.96578176,84.54,84.53,1e-08]
[1772426028766,41.3966031,84.548,84.53,1e-08]
[1772426028969,2.57955701,84.547,84.53,1e-08]
[1772426030663,2.57955701,84.545,84.53,1e-08]
[1772426031373,11.82788068,84.546,84.53,2.48498716]
[1772426033679,11.82788068,84.546,84.53,1e-08]
[1772426035556,32.13714474,84.581,84.53,1e-08]
[1772426035793,70.07359576,84.6,84.53,1e-08]
[1772426035794,13.5511516,84.58,84.53,1e-08]
[1772426036075,13.5511516,84.58,84.535,2.48498715]
[1772426036672,2.57955701,84.579,84.535,2.48498715]
[1772426039374,11.82340561,84.578,84.537,0.14216157]
[1772426039573,14.40296262,84.578,84.537,2.62714872]
[1772426041183,2.57955701,84.596,84.54,2.62714872]
[1772426041766,11.82130729,84.594,84.542,2.62714872]
[1772426041962,11.82038029,84.6,84.546,2.48498715]
[1772426042180,11.81968243,84.605,84.55,2.48498715]
[1772426042400,14.39923944,84.605,84.563,0.14216157]
[1772426042579,14.39923944,84.605,84.566,2.48498715]
[1772426042778,2.57955701,84.604,84.566,2.48498715]
[1772426043382,2.57955701,84.589,84.566,2.48498715]
[1772426044099,2.57955701,84.587,84.559,2.48498715]
[1772426044685,2.57955701,84.593,84.559,2.48498715]
[1772426048507,2.57955701,84.593,84.565,2.48498715]
[1772426048810,11.82144883,84.592,84.565,2.48498715]
[1772426049311,14.40100584,84.592,84.565,2.48498715]
[1772426049694,2.57955701,84.591,84.565,2.48498715]
[1772426049895,2.57955701,84.589,84.554,2.48498715]
[1772426051292,2.57955701,84.587,84.555,2.48498715]
[1772426051989,2.57955701,84.579,84.547,2.48498715]
[1772426052191,2.57955701,84.579,84.549,2.48498715]
[1772426052391,2.86388015,84.587,84.549,2.48498715]
[1772426054014,11.82228737,84.586,84.55,11.82732111]
[1772426054215,4.6027307,84.6,84.55,11.82732111]
[1772426054216,2.51865256,84.614,84.553,0.14216157]
[1772426054399,2.51865256,84.613,84.561,0.14216157]
[1772426054604,2.51865256,84.613,84.576,2.59232573]
[1772426056106,2.51865256,84.611,84.578,2.59232573]
[1772426056313,2.51865256,84.609,84.578,2.59232573]
[1772426058219,11.81921331,84.608,84.58,2.50070234]
[1772426058518,2.396985,84.607,84.58,2.50070234]
[1772426060019,2.396985,84.607,84.576,11.8236314]
[1772426060723,2.396985,84.605,84.575,14.46668891]
[1772426060906,2.396985,84.605,84.576,2.50070234]
[1772426061104,4.6027307,84.63,84.575,11.96598657]
[1772426061105,11.81418647,84.644,84.577,2.64286391]
[1772426061410,11.81418647,84.644,84.593,2.50070234]
[1772426061725,11.81418647,84.644,84.605,2.50070234]
[1772426062619,11.95565021,84.649,84.606,11.8194927]
[1772426062917,0.14216157,84.648,84.607,2.50070234]
[1772426063096,1.21750072,84.647,84.607,2.50070234]
[1772426065017,4.6027307,84.64,84.609,2.50070234]
[1772426066415,11.81488439,84.639,84.609,2.50070234]
[1772426066612,1.21535001,84.617,84.587,2.50070234]
[1772426066810,4.6027307,84.61,84.587,2.50070234]
[1772426067810,11.81907362,84.609,84.587,2.50070234]
[1772426068340,4.6027307,84.63,84.589,2.50070234]
[1772426068341,4.6027307,84.62,84.589,2.50070234]
[1772426068525,4.6027307,84.62,84.591,2.50070234]
[1772426068930,4.6027307,84.62,84.595,2.50070234]
[1772426069103,1.21398279,84.619,84.595,2.50070234]
[1772426069734,1.21398279,84.619,84.589,2.50070234]
[1772426070330,4.6027307,84.62,84.591,2.50070234]
[1772426071322,11.81675079,84.626,84.593,2.50070234]
[1772426072512,11.81675079,84.626,84.595,2.50070234]
[1772426073227,0.28432314,84.599,84.563,2.58716782]
[1772426073428,4.6027307,84.59,84.563,2.58716782]
[1772426073908,4.6027307,84.58,84.563,2.58716782]
[1772426074608,11.82260537,84.584,84.563,2.58716782]
[1772426075626,10.96313931,84.58,84.538,29.57237801]
[1772426075862,10.96313931,84.57,84.54,2.58716782]
[1772426076030,10.96313931,84.58,84.544,2.58716782]
[1772426076827,11.82326582,84.579,84.546,2.58716782]
[1772426077932,11.82326582,84.579,84.547,11.82774078]
[1772426078129,11.82326582,84.579,84.548,2.58716782]
[1772426079134,0.28432314,84.578,84.511,2.58716782]
[1772426079429,10.96313931,84.55,84.525,2.58716782]
[1772426079812,10.96313931,84.56,84.531,11.82997953]
[1772426080017,10.96313931,84.56,84.532,2.58716782]
[1772426081238,11.82606227,84.559,84.534,2.58716782]
[1772426082532,10.96313931,84.57,84.536,2.58716782]
[1772426082937,10.96313931,84.58,84.538,2.58716782]
[1772426083239,41.36333553,84.616,84.553,0.14216157]
[1772426083421,41.36333553,84.616,84.564,2.58716782]
[1772426084614,11.82047069,84.599,84.565,11.8252232]
[1772426084823,10.96313931,84.61,84.568,2.58716782]
[1772426085046,10.96313931,84.61,84.57,2.58716782]
[1772426085335,29.54523967,84.616,84.574,2.58716782]
[1772426085720,10.96313931,84.61,84.574,2.58716782]
[1772426085930,10.96313931,84.58,84.559,2.58716782]
[1772426086121,10.96313931,84.59,84.559,2.58716782]
[1772426087244,11.82047069,84.599,84.563,2.58716782]
[1772426087442,11.82047069,84.599,84.565,2.58716782]
[1772426088642,11.81973041,84.605,84.565,2.58716782]
[1772426088948,11.81767688,84.619,84.575,2.58716782]
[1772426089326,11.81767688,84.619,84.577,2.58716782]
[1772426089530,0.28432314,84.618,84.577,2.58716782]
[1772426090244,0.28432314,84.618,84.56,29.56480605]
[1772426090245,10.96313931,84.6,84.565,2.58716782]
[1772426091546,10.96313931,84.6,84.556,0.14216157]
[1772426091547,11.82047069,84.599,84.567,2.58716782]
[1772426091744,11.82047069,84.599,84.519,2.58716782]
[1772426091745,10.96313931,84.59,84.519,2.58716782]
[1772426091944,10.96313931,84.57,84.532,2.58716782]
[1772426092246,10.96313931,84.56,84.532,2.58716782]
[1772426092442,10.96313931,84.55,84.524,2.58716782]
[1772426092643,10.97191876,84.55,84.524,2.58716782]
[1772426093545,11.82746099,84.549,84.524,2.58716782]
[1772426093750,11.82746099,84.549,84.525,2.58716782]
[1772426094246,0.28432314,84.559,84.525,2.58716782]
[1772426094432,12.10898702,84.569,84.525,2.58716782]
[1772426094828,41.67064672,84.569,84.525,2.58716782]
[1772426095147,10.97191876,84.56,84.525,2.58716782]
[1772426097335,11.82606227,84.559,84.527,2.58716782]
[1772426098529,0.28432314,84.579,84.529,2.58716782]
[1772426098843,0.28432314,84.579,84.526,11.83067931]
[1772426098844,10.97191876,84.56,84.535,2.58716782]
[1772426099349,70.92366249,84.598,84.548,2.58716782]
[1772426099350,0.28432314,84.579,84.548,2.58716782]
[1772426100239,11.82340561,84.578,84.548,2.58716782]
[1772426100427,0.28432314,84.577,84.548,2.58716782]
[1772426101244,0.28432314,84.577,84.55,2.58716782]
[1772426101427,11.82340561,84.578,84.55,2.58716782]
[1772426101639,11.82214761,84.587,84.552,2.58716782]
[1772426101839,11.82075014,84.597,84.554,2.58716782]
[1772426103029,11.82075014,84.597,84.549,41.39611348]
[1772426103030,11.82075014,84.597,84.556,2.58716782]
[1772426103245,11.819353,84.607,84.558,2.58716782]
[1772426103447,11.819353,84.607,84.564,2.58716782]
[1772426103632,11.81879321,84.612,84.568,2.58716782]
[1772426103834,11.81879321,84.612,84.574,2.58716782]
[1772426104557,10.97191876,84.61,84.574,2.58716782]
[1772426104758,0.28432314,84.599,84.556,2.58716782]
[1772426105135,10.97191876,84.6,84.546,0.14216157]
[1772426105136,0.28432314,84.597,84.558,2.58716782]
[1772426106153,11.82088987,84.596,84.559,11.82606227]
[1772426106356,11.82088987,84.596,84.56,2.58716782]
[1772426108853,11.82088987,84.596,84.562,2.58716782]
[1772426109232,11.82088987,84.596,84.532,2.58716782]
[1772426109233,10.97191876,84.57,84.532,2.58716782]
[1772426109631,10.97191876,84.57,84.534,2.58716782]
[1772426110955,22.79652152,84.57,84.535,11.82941976]
[1772426111262,0.28432314,84.589,84.538,2.58716782]
[1772426111438,11.82200784,84.588,84.549,0.14216157]
[1772426111642,11.82200784,84.588,84.554,2.58716782]
[1772426114743,10.97191876,84.58,84.554,2.58716782]
[1772426115361,0.28432314,84.579,84.545,2.58716782]
[1772426115564,10.97191876,84.56,84.535,2.58716782]
[1772426116646,10.97191876,84.57,84.537,2.58716782]
[1772426116846,0.28432314,84.579,84.537,2.58716782]
[1772426117261,10.97191876,84.57,84.537,2.58716782]
[1772426118863,10.97191876,84.58,84.539,2.58716782]
[1772426119067,11.82352959,84.578,84.545,2.58716782]
[1772426119566,11.82274543,84.583,84.547,2.58716782]
[1772426119764,11.82274543,84.583,84.554,0.14216157]
[1772426119963,11.82192158,84.589,84.555,2.58716782]
[1772426120145,11.82047069,84.599,84.555,2.58716782]
[1772426120945,10.97191876,84.59,84.558,2.58716782]
[1772426121261,10.97191876,84.59,84.563,0.14216157]
[1772426121445,10.97191876,84.59,84.564,2.58716782]
[1772426121862,10.97191876,84.6,84.564,2.58716782]
[1772426122040,10.97191876,84.61,84.568,2.58716782]
[1772426122245,10.97191876,84.61,84.574,2.58716782]
[1772426122445,10.97191876,84.62,84.574,2.58716782]
[1772426122663,10.97191876,84.61,84.574,2.58716782]
[1772426124274,11.81907362,84.609,84.576,2.58716782]
[1772426125272,11.81850925,84.614,84.578,2.58716782]
[1772426125567,10.97191876,84.59,84.564,2.58716782]
[1772426126355,10.97191876,84.6,84.564,2.58716782]
[1772426126664,10.97191876,84.61,84.564,2.58716782]
[1772426127063,10.97191876,84.61,84.571,0.14216157]
[1772426127269,11.81907362,84.609,84.576,2.58716782]
[1772426129274,62.77023181,84.637,84.474,2.58716782]
[1772426129275,21.94383752,84.59,84.474,2.58716782]
[1772426129478,43.88767504,84.6,84.44,0.1]
[1772426129479,10.97191876,84.49,84.44,0.1]
[1772426129774,2.40179376,84.507,84.45,29.60299193]
[1772426130070,10.97191876,84.52,84.471,30.0]
[1772426130374,3.69383402,84.557,84.471,71.4343384]
[1772426130375,2.40179376,84.536,84.471,71.4343384]
[1772426130569,2.40179376,84.536,84.471,41.4343384]
[1772426130753,10.97191876,84.53,84.472,0.28432314]
[1772426131070,10.97191876,84.53,84.471,41.4343384]
[1772426131252,11.83165915,84.519,84.472,0.42648471]
[1772426131452,11.83165915,84.519,84.481,2.53164555]
[1772426131653,11.83165915,84.519,84.49,0.14216157]
[1772426132064,11.83165915,84.519,84.49,2.67380712]
[1772426135679,11.83165915,84.519,84.49,2.53164555]
[1772426137975,11.83165915,84.519,84.423,2.57636569]
[1772426137976,0.14216157,84.489,84.423,2.57636569]
[1772426138176,10.97191876,84.43,84.401,2.57636568]
[1772426138501,10.97191876,84.43,84.37,0.1]
[1772426138502,10.97191876,84.42,84.37,0.1]
[1772426138782,10.97191876,84.41,84.37,0.1]
[1772426140267,10.97191876,84.41,84.376,2.53164555]
[1772426140688,10.97191876,84.4,84.376,2.53164555]
[1772426141380,11.84707791,84.409,84.383,3.55035592]
[1772426141561,11.84623585,84.415,84.384,2.53164555]
[1772426141763,10.97191876,84.41,84.384,2.53164555]
[1772426142775,10.97191876,84.4,84.384,2.53164555]
[1772426143165,10.97191876,84.4,84.383,1.01871037]
[1772426143772,11.84707791,84.409,84.383,1.01871037]
[1772426144573,10.97191876,84.4,84.383,1.01871037]
[1772426146479,10.97191876,84.43,84.385,2.53164555]
[1772426146687,10.97191876,84.43,84.387,2.53164555]
[1772426147587,10.97191876,84.41,84.387,2.53164555]
[1772426151782,10.97191876,84.4,84.383,1.01871037]
[1772426151983,14.25676847,84.409,84.383,1.01871037]
[1772426152285,2.40969056,84.408,84.383,1.01871037]
[1772426153885,0.28432314,84.418,84.384,2.4076909]
[1772426154083,0.28432314,84.416,84.384,2.4076909]
[1772426154274,10.97191876,84.42,84.384,2.4076909]
[1772426154590,2.40969056,84.426,84.384,2.4076909]
[1772426154796,11.8443795,84.429,84.386,2.4076909]
[1772426154999,0.33417054,84.428,84.388,2.4076909]
[1772426155994,14.25424265,84.427,84.39,2.4076909]
[1772426156199,11.00551768,84.42,84.39,2.4076909]
[1772426156396,0.33417054,84.419,84.39,2.4076909]
[1772426156584,0.33417054,84.419,84.37,0.1]
[1772426156585,2.6940137,84.399,84.37,0.1]
[1772426156896,11.00551768,84.38,84.37,0.1]
[1772426157481,11.00551768,84.37,84.343,11.85629346]
[1772426157681,0.33417054,84.369,84.343,11.85629346]
[1772426158990,0.33417054,84.369,84.339,2.4076909]
[1772426159686,11.00551768,84.35,84.324,2.58518177]
[1772426159998,0.33417054,84.349,84.324,14.44413708]
[1772426160201,11.00551768,84.37,84.328,2.58518177]
[1772426160703,11.00551768,84.37,84.326,41.50558546]
[1772426160704,11.00551768,84.38,84.33,2.58518177]
[1772426160891,11.00551768,84.38,84.338,2.58518177]
[1772426161197,11.850057,84.388,84.338,2.58518177]
[1772426161198,0.28432314,84.387,84.338,2.58518177]
[1772426161396,11.00551768,84.38,84.338,2.58518177]
[1772426162404,11.00551768,84.38,84.34,2.58518177]
[1772426162792,0.28432314,84.387,84.34,2.58518177]
[1772426163385,11.85030692,84.386,84.342,2.58518177]
[1772426163883,0.28432314,84.389,84.342,2.58518177]
[1772426164084,0.28432314,84.387,84.342,2.58518177]
[1772426164513,11.00551768,84.38,84.342,2.58518177]
[1772426164812,0.28432314,84.387,84.342,2.58518177]
[1772426165009,11.00551768,84.41,84.348,2.58518177]
[1772426165192,0.28432314,84.409,84.353,0.14216157]
[1772426165391,11.84707791,84.409,84.358,2.58518177]
[1772426165609,0.28432314,84.408,84.358,2.58518177]
[1772426165786,11.84707791,84.409,84.358,2.58518177]
[1772426165989,0.28432314,84.408,84.358,2.58518177]
[1772426166886,11.00551768,84.4,84.358,2.58518177]
[1772426167306,0.28432314,84.406,84.36,2.58518177]
[1772426167899,11.00551768,84.4,84.36,2.58518177]
[1772426169411,11.00551768,84.4,84.362,2.58518177]
[1772426171110,0.28432314,84.406,84.362,2.58518177]
[1772426171710,11.00551768,84.4,84.364,2.58518177]
[1772426172622,11.84763935,84.405,84.364,2.58518177]
[1772426174595,11.84763935,84.405,84.363,11.85353768]
[1772426174596,0.28432314,84.409,84.366,2.58518177]
[1772426174801,0.28432314,84.407,84.366,2.58518177]
[1772426177308,0.14216157,84.427,84.357,0.14216157]
[1772426177309,11.98741517,84.422,84.368,2.58518177]
[1772426177512,0.14216157,84.419,84.368,2.58518177]
[1772426177703,0.28432314,84.419,84.368,2.58518177]
[1772426179610,0.28432314,84.417,84.37,2.58518177]
[1772426180026,11.00551768,84.42,84.372,2.58518177]
[1772426180218,11.00551768,84.43,84.376,2.58518177]
[1772426180422,11.00551768,84.43,84.378,2.58518177]
[1772426180905,11.84510091,84.424,84.378,2.58518177]
[1772426181307,11.8452536,84.422,84.378,2.58518177]
[1772426181825,11.8452536,84.422,84.324,35.51]
[1772426181826,11.00551768,84.41,84.374,2.58518177]
[1772426182511,0.28432314,84.419,84.374,2.58518177]
[1772426182904,0.51261522,84.416,84.374,2.08518177]
[1772426184007,0.51298841,84.424,84.376,0.14216157]
[1772426184224,39.9197148,84.423,84.376,0.14216157]
[1772426184630,0.51335732,84.421,84.376,0.14216157]
[1772426184926,0.51335732,84.421,84.377,2.52975489]
[1772426187410,0.51335732,84.421,84.379,2.52975489]
[1772426189524,0.51335732,84.421,84.381,2.52975489]
[1772426191734,39.40672639,84.423,84.383,2.52975489]
[1772426192031,0.51604374,84.436,84.387,2.52975489]
[1772426192534,11.84342985,84.435,84.387,2.52975489]
[1772426192709,11.84266075,84.441,84.388,0.14216157]
[1772426192916,12.35909427,84.441,84.391,2.52975489]
[1772426193109,12.35909427,84.441,84.39,0.14216157]
[1772426193110,12.35909427,84.441,84.397,2.52975489]
[1772426193314,0.51643352,84.44,84.399,2.52975489]
[1772426193730,0.51643352,84.44,84.401,2.52975489]
[1772426194815,0.51719969,84.456,84.406,0.14216157]
[1772426195030,0.51719969,84.456,84.407,2.52975489]
[1772426196026,0.51757619,84.455,84.409,2.52975489]
[1772426196630,0.51794837,84.449,84.409,2.52975489]
[1772426197333,0.51794837,84.445,84.409,2.52975489]
[1772426198638,0.51867995,84.444,84.411,2.52975489]
[1772426201239,11.84230782,84.443,84.412,11.84665687]
[1772426201442,11.84230782,84.443,84.413,2.52975489]
[1772426201934,0.5197461,84.442,84.413,2.52975489]
[1772426202340,0.5197461,84.442,84.414,11.84637619]
[1772426202641,0.5197461,84.442,84.415,2.52975489]
[1772426203430,11.84258831,84.441,84.415,2.52975489]
[1772426203737,0.52009335,84.44,84.415,2.52975489]
[1772426204538,0.52009335,84.44,84.416,11.84609552]
[1772426204739,0.52009335,84.44,84.416,14.37585041]
[1772426206544,0.52144293,84.439,84.416,14.37585041]
[1772426208057,12.12578958,84.449,84.417,2.40859092]
[1772426208058,0.52209469,84.446,84.417,2.40859092]
[1772426209133,0.52209469,84.446,84.419,2.40859092]
[1772426209333,11.84015978,84.459,84.419,2.40859092]
[1772426209537,0.52241497,84.467,84.419,2.40859092]
[1772426209756,0.80705471,84.466,84.419,2.40859092]
[1772426209926,0.52273157,84.466,84.419,2.40859092]
[1772426210123,0.52273157,84.476,84.419,2.40859092]
[1772426210537,0.52304453,84.472,84.419,2.40859092]
[1772426210743,0.28432314,84.467,84.419,2.40859092]
[1772426211342,12.36102111,84.474,84.423,2.40859092]
[1772426211529,11.83797658,84.474,84.427,2.40859092]
[1772426211721,0.5233539,84.473,84.427,2.40859092]
[1772426212439,0.5233539,84.465,84.429,2.40859092]
[1772426213646,0.52396201,84.456,84.429,2.40859092]
[1772426213853,0.52396201,84.449,84.422,11.84522213]
[1772426214735,0.52426084,84.439,84.415,11.84623585]
[1772426215342,0.52426084,84.439,84.416,2.40859092]
[1772426216628,0.52426084,84.439,84.417,11.84595519]
[1772426218049,0.52426084,84.439,84.417,2.40859092]
[1772426218247,0.80946003,84.446,84.417,2.40859092]
[1772426218537,0.52513689,84.445,84.417,2.40859092]
[1772426220254,0.52570428,84.443,84.418,2.40859092]
[1772426220453,0.52570428,84.443,84.419,2.40859092]
[1772426221044,0.5259831,84.477,84.422,2.40859092]
[1772426221347,0.5259831,84.477,84.424,2.40859092]
[1772426221648,0.5259831,84.477,84.423,0.14216157]
[1772426221649,5.14576046,84.49,84.431,0.14216157]
[1772426221850,4.81950175,84.51,84.422,0.28432314]
[1772426221851,0.52625871,84.479,84.438,2.40859092]
[1772426222432,0.52625871,84.479,84.439,41.45004085]
[1772426222634,11.83612745,84.488,84.44,2.40859092]
[1772426223059,0.52653116,84.488,84.44,2.40859092]
[1772426223260,0.28432314,84.487,84.44,2.40859092]
[1772426223852,0.52680048,84.486,84.44,2.40859092]
[1772426224650,0.52680048,84.486,84.442,2.40859092]
[1772426226158,0.52680048,84.486,84.444,2.40859092]
[1772426227559,0.52759002,84.484,84.444,2.40859092]
[1772426229079,0.52759002,84.484,84.422,0.28432314]
[1772426229080,0.52810138,84.506,84.452,0.14216157]
[1772426229248,0.52810138,84.506,84.457,2.40859092]
[1772426229563,0.52810138,84.499,84.457,2.40859092]
[1772426230253,0.52810138,84.499,84.467,2.40859092]
[1772426231067,0.52810138,84.499,84.469,2.40859092]
[1772426234559,0.52810138,84.499,84.471,2.45122893]
[1772426235686,0.52810138,84.499,84.473,2.45122893]
[1772426237269,0.53048824,84.505,84.473,2.45122893]
[1772426238387,0.5307121,84.503,84.475,2.43554009]
[1772426240273,0.53115216,84.499,84.469,14.27418462]
[1772426240575,0.53115216,84.499,84.47,2.43554009]
[1772426241072,0.53115216,84.499,84.471,11.8383824]
[1772426241270,0.53115216,84.499,84.472,2.43554009]
[1772426244376,0.53115216,84.499,84.473,11.83810211]
[1772426244581,0.53220882,84.497,84.474,2.43554009]
[1772426247077,0.53220882,84.497,84.476,2.43554009]
[1772426247961,0.53220882,84.497,84.475,11.83782184]
[1772426248584,0.53220882,84.497,84.475,14.27336193]
[1772426248783,0.53220882,84.497,84.476,2.43554009]
[1772426249580,0.53220882,84.497,84.477,14.27308166]
[1772426251178,0.53220882,84.497,84.477,2.43554009]
[1772426251373,11.83487975,84.496,84.477,2.43554009]
[1772426251778,0.53220882,84.497,84.477,2.43554009]
[1772426252674,0.53377751,84.495,84.472,2.43554009]
[1772426254762,0.28432314,84.508,84.474,2.43554009]
[1772426254966,0.53414755,84.506,84.474,2.43554009]
[1772426255381,4.61950175,84.5,84.474,2.43554009]
[1772426255576,0.53414755,84.499,84.474,2.43554009]
[1772426255783,0.53414755,84.499,84.469,2.43554009]
[1772426256010,0.53432939,84.495,84.463,2.43554009]
[1772426257181,0.53450913,84.493,84.465,2.43554009]
[1772426258798,0.53450913,84.493,84.439,0.14216157]
[1772426258799,0.53486246,84.479,84.453,2.43554009]
[1772426259092,0.53486246,84.469,84.443,2.43554009]
[1772426259469,0.53486246,84.465,84.437,2.43554009]
[1772426259784,4.61950175,84.45,84.422,2.43554009]
[1772426259991,0.53503609,84.449,84.422,2.43554009]
[1772426260573,0.28432314,84.459,84.422,2.43554009]
[1772426261092,0.28432314,84.461,84.424,2.43554009]
[1772426261787,0.28432314,84.459,84.424,2.43554009]
[1772426263067,0.53554509,84.456,84.426,2.43554009]
[1772426263872,0.28432314,84.457,84.426,2.43554009]
[1772426265484,11.84048498,84.456,84.426,2.43554009]
[1772426265685,11.84048498,84.456,84.428,2.43554009]
[1772426266274,0.53603676,84.455,84.428,2.43554009]
[1772426268199,0.53603676,84.455,84.393,3.69383402]
[1772426268200,0.53651168,84.48,84.43,2.52206339]
[1772426268400,0.53651168,84.479,84.43,2.52206339]
[1772426269080,0.28432314,84.476,84.43,2.52206339]
[1772426269280,0.28432314,84.476,84.432,2.52206339]
[1772426269281,0.53666636,84.474,84.432,2.52206339]
[1772426270190,0.53681927,84.469,84.432,2.52206339]
[1772426270499,0.53681927,84.465,84.432,2.52206339]
[1772426270794,0.53697042,84.455,84.426,2.52206339]
[1772426271178,0.53697042,84.453,84.426,2.52206339]
[1772426272090,0.53697042,84.453,84.426,2.02206339]
[1772426273198,29.5947163,84.475,84.411,0.14216157]
[1772426273406,1.03726753,84.469,84.411,0.14216157]
[1772426273707,1.03741353,84.465,84.411,0.14216157]
[1772426274082,1.03741353,84.465,84.418,2.52206339]
[1772426275491,1.03755786,84.463,84.42,2.52206339]
[1772426276398,1.03770052,84.459,84.42,2.52206339]
[1772426276698,1.03784155,84.455,84.42,2.52206339]
[1772426278203,1.3223225,84.463,84.422,2.52206339]
[1772426278386,1.3223225,84.462,84.422,2.52206339]
[1772426278711,1.18031692,84.459,84.422,2.52206339]
[1772426278897,0.28432314,84.455,84.422,2.52206339]
[1772426279203,0.28432314,84.447,84.422,2.52206339]
[1772426279504,1.03830956,84.466,84.422,2.52206339]
[1772426279689,1.3226327,84.461,84.422,2.52206339]
[1772426280087,1.03830956,84.461,84.422,2.52206339]
[1772426280293,0.28432314,84.467,84.424,2.52206339]
[1772426280502,1.03830956,84.474,84.423,41.45789653]
[1772426280503,1.03830956,84.476,84.428,2.52206339]
[1772426281889,0.28432314,84.478,84.428,2.52206339]
[1772426282106,1.03861267,84.476,84.428,2.52206339]
[1772426282285,1.03861267,84.476,84.423,100.68346302]
[1772426282286,1.03861267,84.474,84.43,2.52206339]
[1772426283108,11.83782184,84.475,84.43,2.52206339]
[1772426283109,1.03876162,84.466,84.43,2.52206339]
[1772426284394,1.03890886,84.464,84.432,2.52206339]
[1772426284590,11.83720501,84.48,84.432,2.52206339]
[1772426285106,0.28432314,84.479,84.432,2.52206339]
[1772426286110,1.32352143,84.479,84.432,2.52206339]
[1772426286313,0.14216157,84.497,84.431,41.45396832]
[1772426286314,11.83516182,84.494,84.439,2.52206339]
[1772426286693,1.03934051,84.493,84.447,2.52206339]
[1772426287293,1.03934051,84.493,84.449,2.52206339]
[1772426288303,11.83516182,84.494,84.449,2.52206339]
[1772426288491,11.83430816,84.501,84.449,2.52206339]
[1772426289016,11.83430816,84.501,84.448,41.44562333]
[1772426289017,1.0394811,84.503,84.452,2.52206339]
[1772426289390,4.81767852,84.51,84.454,2.52206339]
[1772426289590,0.2,84.51,84.462,2.52206339]
[1772426289804,0.2,84.51,84.468,2.52206339]
[1772426290716,1.03989326,84.505,84.468,2.52206339]
[1772426291090,11.8330592,84.509,84.468,2.52206339]
[1772426291091,0.28432314,84.496,84.468,2.52206339]
[1772426291298,1.03989326,84.495,84.461,2.52206339]
[1772426291498,1.03989326,84.493,84.463,2.52206339]
[1772426292599,11.83544004,84.492,84.465,2.52206339]
[1772426294608,11.83544004,84.492,84.467,2.47997157]
[1772426294809,0.14216157,84.496,84.467,2.47997157]
[1772426295118,11.83412637,84.502,84.467,2.47997157]
[1772426297008,1.040925,84.505,84.469,2.3810655]
[1772426298122,4.81767852,84.51,84.469,2.3810655]
[1772426298123,0.2,84.51,84.469,2.3810655]
[1772426299126,0.2,84.51,84.471,2.3810655]
[1772426301319,0.2,84.51,84.473,2.3810655]
[1772426303434,0.2,84.51,84.475,2.3810655]
[1772426304405,0.2,84.51,84.477,2.3810655]
[1772426307222,0.2,84.51,84.479,2.3810655]
[1772426309229,0.2,84.51,84.476,29.59420427]
[1772426309230,0.2,84.51,84.481,2.3810655]
[1772426309534,1.04230438,84.508,84.476,2.3810655]
[1772426311215,1.04230438,84.508,84.478,2.3810655]
[1772426313445,1.04230438,84.508,84.479,11.83726133]
[1772426313635,1.04230438,84.508,84.48,2.3810655]
[1772426315938,0.2,84.52,84.483,2.3810655]
[1772426316144,0.2,84.52,84.487,2.3810655]
[1772426316436,1.043025,84.533,84.485,2.52322707]
[1772426316734,1.04312327,84.539,84.485,2.52322707]
[1772426316937,12.87207794,84.539,84.485,2.52322707]
[1772426317142,1.04312327,84.533,84.485,2.52322707]
[1772426317344,1.24312327,84.53,84.485,2.52322707]
[1772426318445,1.24312327,84.53,84.488,2.3810655]
[1772426320632,1.24312327,84.53,84.49,2.52322707]
[1772426320835,11.83025943,84.529,84.49,2.3810655]